[Event "*** SCC Grand Prix: Titled Tuesday Blitz"]
[Site "Chess.com"]
[Date "2020.06.02"]
[Round "10"]
[White "WeAintSurePal"]
[Black "ShahMatKanal"]
[Result "1-0"]
[WhiteElo "2287"]
[BlackElo "2456"]
[TimeControl "180+1"]
[EndTime "11:57:42 PDT"]
[Termination "WeAintSurePal won on time"]

1. d4 {[%clk 0:03:00.9]} 1... Nf6 {[%clk 0:02:58.5]} 2. c4 {[%clk 0:03:01.8]}
2... c5 {[%clk 0:02:58.1]} 3. d5 {[%clk 0:03:00.8]} 3... b5 {[%clk 0:02:57.6]}
4. Nd2 {[%clk 0:02:58.2]} 4... e6 {[%clk 0:02:52.6]} 5. e4 {[%clk 0:02:57.7]}
5... d6 {[%clk 0:02:52.4]} 6. Ngf3 {[%clk 0:02:53.4]} 6... bxc4 {[%clk 0:02:46]}
7. Bxc4 {[%clk 0:02:51.9]} 7... e5 {[%clk 0:02:45.9]} 8. Bb5+ {[%clk 0:02:47]}
8... Nbd7 {[%clk 0:02:41.7]} 9. O-O {[%clk 0:02:46.3]} 9... Be7 {[%clk
0:02:41.7]} 10. h3 {[%clk 0:02:41.7]} 10... O-O {[%clk 0:02:40.8]} 11. Bxd7
{[%clk 0:02:39.4]} 11... Bxd7 {[%clk 0:02:37.4]} 12. Qc2 {[%clk 0:02:35.9]}
12... Qc8 {[%clk 0:02:32.7]} 13. b3 {[%clk 0:02:27.9]} 13... Nh5 {[%clk
0:02:10.4]} 14. Nc4 {[%clk 0:02:23.3]} 14... f5 {[%clk 0:02:03.3]} 15. Bg5
{[%clk 0:02:08.2]} 15... Nf6 {[%clk 0:01:35.9]} 16. Bxf6 {[%clk 0:02:01.2]}
16... Rxf6 {[%clk 0:01:33.3]} 17. Ng5 {[%clk 0:01:58.7]} 17... f4 {[%clk
0:00:54.5]} 18. f3 {[%clk 0:01:54.6]} 18... Qe8 {[%clk 0:00:37.9]} 19. Rad1
{[%clk 0:01:49.1]} 19... Qh5 {[%clk 0:00:32]} 20. Ne6 {[%clk 0:01:46.9]} 20...
Rg6 {[%clk 0:00:30]} 21. Kh2 {[%clk 0:01:41.1]} 21... Rg3 {[%clk 0:00:27.7]} 22.
Rf2 {[%clk 0:01:32.8]} 22... Rf8 {[%clk 0:00:26.1]} 23. Nd2 {[%clk 0:01:27.2]}
23... Rf6 {[%clk 0:00:23.1]} 24. Nf1 {[%clk 0:01:27]} 24... Rfg6 {[%clk
0:00:15.1]} 25. Re2 {[%clk 0:01:23.6]} 25... R3g5 {[%clk 0:00:07.9]} 26. b4
{[%clk 0:01:19.5]} 26... Rh6 {[%clk 0:00:06.7]} 27. bxc5 {[%clk 0:01:15.6]}
27... Rxg2+ {[%clk 0:00:05.8]} 28. Rxg2 {[%clk 0:01:11.7]} 28... Qxh3+ {[%clk
0:00:06.1]} 29. Kg1 {[%clk 0:01:12.1]} 29... Qh1+ {[%clk 0:00:06.2]} 30. Kf2
{[%clk 0:01:12.3]} 30... Bh4+ {[%clk 0:00:06.7]} 31. Ke2 {[%clk 0:01:09.7]}
31... Qxg2+ {[%clk 0:00:05.1]} 32. Kd3 {[%clk 0:01:09.9]} 32... Bb5+ {[%clk
0:00:05.1]} 33. Kc3 {[%clk 0:01:09.1]} 33... Qg6 {[%clk 0:00:02.9]} 34. c6
{[%clk 0:01:03.6]} 34... Qe8 {[%clk 0:00:02.4]} 35. Kb2 {[%clk 0:01:00.6]} 35...
Rxe6 {[%clk 0:00:02.2]} 36. c7 {[%clk 0:00:56.1]} 1-0

[Event "*** SCC Grand Prix: Titled Tuesday Blitz"]
[Site "Chess.com"]
[Date "2020.06.02"]
[Round "10"]
[White "medalja"]
[Black "Vandros57"]
[Result "1-0"]
[WhiteElo "2416"]
[BlackElo "2254"]
[TimeControl "180+1"]
[EndTime "11:57:44 PDT"]
[Termination "medalja won by checkmate"]

1. d4 {[%clk 0:03:00.9]} 1... d5 {[%clk 0:02:58.1]} 2. c4 {[%clk 0:03:01.1]}
2... e6 {[%clk 0:02:57.3]} 3. Nf3 {[%clk 0:03:01.2]} 3... Nf6 {[%clk 0:02:56.4]}
4. g3 {[%clk 0:02:57.5]} 4... Bb4+ {[%clk 0:02:54.3]} 5. Bd2 {[%clk 0:02:57.3]}
5... Be7 {[%clk 0:02:52.9]} 6. Bg2 {[%clk 0:02:56.8]} 6... O-O {[%clk
0:02:52.2]} 7. O-O {[%clk 0:02:57]} 7... c5 {[%clk 0:02:50.8]} 8. cxd5 {[%clk
0:02:53.7]} 8... exd5 {[%clk 0:02:49.5]} 9. Nc3 {[%clk 0:02:51.8]} 9... Nc6
{[%clk 0:02:48]} 10. Bf4 {[%clk 0:02:51.4]} 10... a6 {[%clk 0:02:35.2]} 11. Rc1
{[%clk 0:02:51]} 11... c4 {[%clk 0:02:31.4]} 12. b3 {[%clk 0:02:46.1]} 12... b5
{[%clk 0:02:30.1]} 13. bxc4 {[%clk 0:02:45.9]} 13... bxc4 {[%clk 0:02:19.4]} 14.
Ne5 {[%clk 0:02:44.3]} 14... Nxe5 {[%clk 0:02:00]} 15. dxe5 {[%clk 0:02:44]}
15... Ne4 {[%clk 0:01:44]} 16. Nxd5 {[%clk 0:02:41.5]} 16... Bf5 {[%clk
0:01:40.2]} 17. g4 {[%clk 0:01:56]} 17... Bg6 {[%clk 0:01:30.9]} 18. Qd4 {[%clk
0:01:51]} 18... Bc5 {[%clk 0:01:18.5]} 19. Qxc4 {[%clk 0:01:50.6]} 19... Rc8
{[%clk 0:01:16.7]} 20. Qb3 {[%clk 0:00:56.6]} 20... Qh4 {[%clk 0:00:56]} 21. Bg3
{[%clk 0:00:56.5]} 21... Qxg4 {[%clk 0:00:51.7]} 22. e3 {[%clk 0:00:55.5]} 22...
Nd2 {[%clk 0:00:48.1]} 23. Qb7 {[%clk 0:00:48.6]} 23... Nxf1 {[%clk 0:00:41.6]}
24. Rxf1 {[%clk 0:00:47.3]} 24... Qe2 {[%clk 0:00:37.2]} 25. Nf4 {[%clk
0:00:46]} 25... Qxa2 {[%clk 0:00:36.1]} 26. Nxg6 {[%clk 0:00:45.1]} 26... hxg6
{[%clk 0:00:35.2]} 27. Bh3 {[%clk 0:00:44.1]} 27... Rb8 {[%clk 0:00:32.5]} 28.
Qc6 {[%clk 0:00:44.4]} 28... Be7 {[%clk 0:00:27.9]} 29. e6 {[%clk 0:00:44.3]}
29... f5 {[%clk 0:00:25]} 30. Bxb8 {[%clk 0:00:43.6]} 30... Rxb8 {[%clk
0:00:24.6]} 31. Qc7 {[%clk 0:00:43.8]} 31... Re8 {[%clk 0:00:22.2]} 32. Qd7
{[%clk 0:00:43.8]} 32... Kf8 {[%clk 0:00:21]} 33. Rc1 {[%clk 0:00:43]} 33... Qe2
{[%clk 0:00:18]} 34. Bg2 {[%clk 0:00:42.1]} 34... Qb5 {[%clk 0:00:16]} 35. Bc6
{[%clk 0:00:39.3]} 35... Qb2 {[%clk 0:00:15.1]} 36. Qxe8# {[%clk 0:00:39]} 1-0

[Event "*** SCC Grand Prix: Titled Tuesday Blitz"]
[Site "Chess.com"]
[Date "2020.06.02"]
[Round "10"]
[White "Giraffe_Chess"]
[Black "Bastiandash"]
[Result "1-0"]
[WhiteElo "2382"]
[BlackElo "2136"]
[TimeControl "180+1"]
[EndTime "11:57:44 PDT"]
[Termination "Giraffe_Chess won on time"]

1. d4 {[%clk 0:03:00.9]} 1... Nf6 {[%clk 0:03:00.1]} 2. c4 {[%clk 0:03:01.1]}
2... e6 {[%clk 0:03:00.5]} 3. Nf3 {[%clk 0:03:00.8]} 3... Bb4+ {[%clk
0:03:00.8]} 4. Nc3 {[%clk 0:03:00]} 4... b6 {[%clk 0:02:55.6]} 5. g3 {[%clk
0:02:59.8]} 5... Bb7 {[%clk 0:02:55.1]} 6. Bg2 {[%clk 0:03:00.2]} 6... O-O
{[%clk 0:02:53.1]} 7. O-O {[%clk 0:03:00.1]} 7... Bxc3 {[%clk 0:02:46.1]} 8.
bxc3 {[%clk 0:02:59.7]} 8... Ne4 {[%clk 0:02:47]} 9. Qc2 {[%clk 0:02:57.3]} 9...
f5 {[%clk 0:02:46.4]} 10. Nd2 {[%clk 0:02:53.3]} 10... Nxd2 {[%clk 0:02:16.1]}
11. Bxb7 {[%clk 0:02:48.5]} 11... Nxf1 {[%clk 0:02:15.8]} 12. Bxa8 {[%clk
0:02:46.2]} 12... c6 {[%clk 0:01:53.4]} 13. Kxf1 {[%clk 0:02:43.8]} 13... Qc7
{[%clk 0:01:53.5]} 14. Qa4 {[%clk 0:02:33]} 14... a5 {[%clk 0:01:34.7]} 15. Bf4
{[%clk 0:02:21.3]} 15... Qa7 {[%clk 0:01:16.1]} 16. Bxb8 {[%clk 0:01:58.4]}
16... Qxb8 {[%clk 0:00:44.6]} 17. Bxc6 {[%clk 0:01:57.6]} 17... dxc6 {[%clk
0:00:45.5]} 18. Qxc6 {[%clk 0:01:57.9]} 18... f4 {[%clk 0:00:46.4]} 19. Qxe6+
{[%clk 0:01:54.4]} 19... Kh8 {[%clk 0:00:46.1]} 20. Kg2 {[%clk 0:01:48.7]} 20...
Re8 {[%clk 0:00:37.6]} 21. Qg4 {[%clk 0:01:44.8]} 21... Qc7 {[%clk 0:00:20.1]}
22. Rb1 {[%clk 0:01:28.9]} 22... fxg3 {[%clk 0:00:17]} 23. hxg3 {[%clk
0:01:28.4]} 23... Qxc4 {[%clk 0:00:16.8]} 24. Rxb6 {[%clk 0:01:24.4]} 24... Qxc3
{[%clk 0:00:15.7]} 25. Re6 {[%clk 0:01:11.6]} 25... Rf8 {[%clk 0:00:07.8]} 26.
Re7 {[%clk 0:01:02]} 26... Qc6+ {[%clk 0:00:07.7]} 27. f3 {[%clk 0:00:58.9]}
27... Qf6 {[%clk 0:00:03.8]} 28. Qe4 {[%clk 0:00:54.6]} 28... h6 {[%clk
0:00:02.9]} 29. Re8 {[%clk 0:00:52.6]} 29... Rxe8 {[%clk 0:00:02.3]} 30. Qxe8+
{[%clk 0:00:53.5]} 30... Kh7 {[%clk 0:00:02.6]} 31. Qe4+ {[%clk 0:00:53.7]}
31... Kg8 {[%clk 0:00:01.5]} 32. Qe5 {[%clk 0:00:53.4]} 32... Qb6 {[%clk
0:00:01.9]} 33. d5 {[%clk 0:00:49.8]} 33... Qb5 {[%clk 0:00:02.3]} 34. Qe6+
{[%clk 0:00:48.6]} 34... Kh7 {[%clk 0:00:02.9]} 35. d6 {[%clk 0:00:47.4]} 35...
Qb1 {[%clk 0:00:01.1]} 36. Qe4+ {[%clk 0:00:46.3]} 1-0

[Event "*** SCC Grand Prix: Titled Tuesday Blitz"]
[Site "Chess.com"]
[Date "2020.06.02"]
[Round "10"]
[White "davekoenig"]
[Black "Siniauski"]
[Result "0-1"]
[WhiteElo "2190"]
[BlackElo "2504"]
[TimeControl "180+1"]
[EndTime "11:57:45 PDT"]
[Termination "Siniauski won by resignation"]

1. e4 {[%clk 0:03:00.9]} 1... e6 {[%clk 0:03:00.2]} 2. d4 {[%clk 0:03:00.6]}
2... d5 {[%clk 0:03:00.3]} 3. e5 {[%clk 0:03:01]} 3... c5 {[%clk 0:03:00.2]} 4.
c3 {[%clk 0:03:01.3]} 4... Qb6 {[%clk 0:03:00.4]} 5. Nf3 {[%clk 0:03:00.8]} 5...
Bd7 {[%clk 0:03:00.1]} 6. Be2 {[%clk 0:03:00.4]} 6... Bb5 {[%clk 0:02:59]} 7. c4
{[%clk 0:03:00.4]} 7... Bxc4 {[%clk 0:02:58.5]} 8. Bxc4 {[%clk 0:02:59.7]} 8...
dxc4 {[%clk 0:02:59.4]} 9. d5 {[%clk 0:02:57.6]} 9... Ne7 {[%clk 0:02:58.7]} 10.
d6 {[%clk 0:02:51.9]} 10... Ng6 {[%clk 0:02:58.4]} 11. Nbd2 {[%clk 0:02:43]}
11... Nd7 {[%clk 0:02:46.5]} 12. Qe2 {[%clk 0:02:33.6]} 12... Qb4 {[%clk
0:02:25.9]} 13. a3 {[%clk 0:02:27.1]} 13... Qa5 {[%clk 0:02:24.8]} 14. Qe4
{[%clk 0:02:09.2]} 14... c3 {[%clk 0:02:08.4]} 15. bxc3 {[%clk 0:01:56.2]} 15...
Qxc3 {[%clk 0:02:07.5]} 16. Rb1 {[%clk 0:01:56.3]} 16... Ngxe5 {[%clk
0:01:51.4]} 17. Nxe5 {[%clk 0:01:38.9]} 17... Qxe5 {[%clk 0:01:50.2]} 18. Rxb7
{[%clk 0:01:37.1]} 18... Bxd6 {[%clk 0:01:26.7]} 19. f4 {[%clk 0:01:15.5]} 19...
Qxe4+ {[%clk 0:00:50.3]} 20. Nxe4 {[%clk 0:01:15.5]} 20... Be7 {[%clk
0:00:50.9]} 21. O-O {[%clk 0:01:08.9]} 21... Nf6 {[%clk 0:00:45.1]} 22. Ng5
{[%clk 0:00:59]} 22... h6 {[%clk 0:00:37.1]} 23. Nf3 {[%clk 0:00:58.9]} 23...
Nd5 {[%clk 0:00:36.7]} 24. Ne5 {[%clk 0:00:55]} 24... O-O {[%clk 0:00:32.5]} 25.
f5 {[%clk 0:00:49.9]} 25... Bf6 {[%clk 0:00:27.6]} 26. Nd7 {[%clk 0:00:44.6]}
26... Bd4+ {[%clk 0:00:27.5]} 27. Kh1 {[%clk 0:00:44]} 27... Rfd8 {[%clk
0:00:22.7]} 28. fxe6 {[%clk 0:00:43.3]} 28... fxe6 {[%clk 0:00:23.3]} 29. Re1
{[%clk 0:00:37.7]} 29... Nf6 {[%clk 0:00:14]} 30. Ne5 {[%clk 0:00:28.9]} 30...
Bxe5 {[%clk 0:00:12.5]} 0-1

[Event "*** SCC Grand Prix: Titled Tuesday Blitz"]
[Site "Chess.com"]
[Date "2020.06.02"]
[Round "10"]
[White "MightyGMpretender"]
[Black "RobPeresian"]
[Result "1-0"]
[WhiteElo "2569"]
[BlackElo "2377"]
[TimeControl "180+1"]
[EndTime "11:57:46 PDT"]
[Termination "MightyGMpretender won by resignation"]

1. e4 {[%clk 0:03:00.9]} 1... e5 {[%clk 0:02:57.3]} 2. Nc3 {[%clk 0:02:59.2]}
2... Nf6 {[%clk 0:02:55.4]} 3. Bc4 {[%clk 0:02:54]} 3... Bc5 {[%clk 0:02:54.7]}
4. d3 {[%clk 0:02:53.1]} 4... Nc6 {[%clk 0:02:52.4]} 5. f4 {[%clk 0:02:52.4]}
5... d6 {[%clk 0:02:49.2]} 6. Nf3 {[%clk 0:02:47.6]} 6... a6 {[%clk 0:02:42.9]}
7. Qe2 {[%clk 0:02:45.9]} 7... Bg4 {[%clk 0:02:40.2]} 8. Be3 {[%clk 0:02:42.6]}
8... Nd4 {[%clk 0:02:35.1]} 9. Qf2 {[%clk 0:02:37.9]} 9... Bxf3 {[%clk
0:02:28.5]} 10. gxf3 {[%clk 0:02:36.9]} 10... Nxc2+ {[%clk 0:02:28.6]} 11. Qxc2
{[%clk 0:02:35.1]} 11... Bxe3 {[%clk 0:02:29.1]} 12. f5 {[%clk 0:02:30.6]} 12...
c6 {[%clk 0:02:22.3]} 13. Bb3 {[%clk 0:02:14.8]} 13... Nh5 {[%clk 0:01:50.7]}
14. Qe2 {[%clk 0:02:12.7]} 14... Qh4+ {[%clk 0:01:45.9]} 15. Kd1 {[%clk
0:02:12.6]} 15... Bd4 {[%clk 0:01:43.4]} 16. Kc2 {[%clk 0:02:10.6]} 16... Nf4
{[%clk 0:01:41.4]} 17. Qd2 {[%clk 0:02:09.8]} 17... b5 {[%clk 0:01:37.7]} 18. a4
{[%clk 0:01:54.3]} 18... O-O {[%clk 0:01:36.4]} 19. Ne2 {[%clk 0:01:50.6]} 19...
Nxe2 {[%clk 0:01:28.1]} 20. Qxe2 {[%clk 0:01:51.5]} 20... Rab8 {[%clk
0:01:09.1]} 21. axb5 {[%clk 0:01:49.3]} 21... axb5 {[%clk 0:01:06.2]} 22. Ra6
{[%clk 0:01:48.6]} 22... Rfc8 {[%clk 0:01:04.8]} 23. Rha1 {[%clk 0:01:47.6]}
23... c5 {[%clk 0:00:59.5]} 24. Bd5 {[%clk 0:01:47.6]} 24... c4 {[%clk
0:00:59.5]} 25. dxc4 {[%clk 0:01:37.9]} 25... bxc4 {[%clk 0:00:59.6]} 26. R1a2
{[%clk 0:01:37.6]} 26... c3 {[%clk 0:00:55.3]} 27. b3 {[%clk 0:01:33.7]} 27...
Qg5 {[%clk 0:00:54.1]} 28. Rxd6 {[%clk 0:01:28.3]} 28... Qg1 {[%clk 0:00:51.2]}
29. Rd7 {[%clk 0:01:22.3]} 29... Be3 {[%clk 0:00:50.3]} 30. Bxf7+ {[%clk
0:01:13.5]} 30... Kh8 {[%clk 0:00:49.9]} 31. Rd1 {[%clk 0:01:13.9]} 31... Qg5
{[%clk 0:00:46.3]} 32. Be6 {[%clk 0:01:04.2]} 32... Rc7 {[%clk 0:00:41.7]} 33.
Rd5 {[%clk 0:00:30.5]} 33... Bd2 {[%clk 0:00:38.6]} 34. Qb5 {[%clk 0:00:27.3]}
34... Rcb7 {[%clk 0:00:32.8]} 35. Qxb7 {[%clk 0:00:26.7]} 1-0

[Event "*** SCC Grand Prix: Titled Tuesday Blitz"]
[Site "Chess.com"]
[Date "2020.06.02"]
[Round "10"]
[White "mortngabriel"]
[Black "floplover"]
[Result "0-1"]
[WhiteElo "2446"]
[BlackElo "2239"]
[TimeControl "180+1"]
[EndTime "11:57:49 PDT"]
[Termination "floplover won by resignation"]

1. Nf3 {[%clk 0:03:00.9]} 1... d5 {[%clk 0:02:59]} 2. e3 {[%clk 0:03:00.8]} 2...
e6 {[%clk 0:02:58.3]} 3. c4 {[%clk 0:03:01.2]} 3... Nf6 {[%clk 0:02:58.2]} 4.
Nc3 {[%clk 0:03:00.9]} 4... Be7 {[%clk 0:02:57.2]} 5. Qc2 {[%clk 0:02:54.7]}
5... O-O {[%clk 0:02:54.9]} 6. b3 {[%clk 0:02:54.6]} 6... c5 {[%clk 0:02:54.8]}
7. cxd5 {[%clk 0:02:54.5]} 7... exd5 {[%clk 0:02:51.2]} 8. d4 {[%clk 0:02:54.3]}
8... Nc6 {[%clk 0:02:47.3]} 9. Be2 {[%clk 0:02:23.6]} 9... Bg4 {[%clk
0:02:33.8]} 10. dxc5 {[%clk 0:02:20.9]} 10... Bxc5 {[%clk 0:02:00.1]} 11. O-O
{[%clk 0:02:16.7]} 11... Rc8 {[%clk 0:01:58.5]} 12. Bb2 {[%clk 0:01:43.9]} 12...
Qe7 {[%clk 0:01:33.9]} 13. Rfd1 {[%clk 0:01:18.7]} 13... Rcd8 {[%clk 0:01:26.4]}
14. Na4 {[%clk 0:01:01.6]} 14... Bd6 {[%clk 0:01:25.8]} 15. Nd4 {[%clk
0:00:55.2]} 15... Qe5 {[%clk 0:00:55.9]} 16. g3 {[%clk 0:00:47.9]} 16... Nxd4
{[%clk 0:00:36.9]} 17. Bxd4 {[%clk 0:00:42.8]} 17... Qh5 {[%clk 0:00:36.7]} 18.
Bxg4 {[%clk 0:00:30.3]} 18... Nxg4 {[%clk 0:00:37.6]} 19. h4 {[%clk 0:00:31.2]}
19... Rfe8 {[%clk 0:00:29.6]} 20. Kg2 {[%clk 0:00:26.2]} 20... Qh6 {[%clk
0:00:24.6]} 21. Rac1 {[%clk 0:00:22.8]} 21... Qe6 {[%clk 0:00:21.7]} 22. Qd3
{[%clk 0:00:16.7]} 22... b6 {[%clk 0:00:20.5]} 23. Rc2 {[%clk 0:00:11.3]} 23...
Nh6 {[%clk 0:00:20.2]} 24. Rdc1 {[%clk 0:00:09.6]} 24... Nf5 {[%clk 0:00:20.2]}
25. Bb2 {[%clk 0:00:08.4]} 25... Qg6 {[%clk 0:00:18.9]} 26. Kf1 {[%clk 0:00:06]}
26... Nxg3+ {[%clk 0:00:18.3]} 0-1

[Event "*** SCC Grand Prix: Titled Tuesday Blitz"]
[Site "Chess.com"]
[Date "2020.06.02"]
[Round "10"]
[White "Piotrek1979"]
[Black "politeplayer"]
[Result "1-0"]
[WhiteElo "2419"]
[BlackElo "2259"]
[TimeControl "180+1"]
[EndTime "11:57:50 PDT"]
[Termination "Piotrek1979 won by resignation"]

1. Nf3 {[%clk 0:03:00.9]} 1... Nf6 {[%clk 0:02:58.1]} 2. g3 {[%clk 0:03:01.5]}
2... d5 {[%clk 0:02:56.1]} 3. Bg2 {[%clk 0:03:02.4]} 3... c5 {[%clk 0:02:56.2]}
4. O-O {[%clk 0:03:02]} 4... Nc6 {[%clk 0:02:56.3]} 5. d3 {[%clk 0:03:02.5]}
5... e6 {[%clk 0:02:53.6]} 6. Nbd2 {[%clk 0:02:59.2]} 6... Be7 {[%clk
0:02:53.4]} 7. e4 {[%clk 0:02:59.3]} 7... b6 {[%clk 0:02:53]} 8. Re1 {[%clk
0:02:57.6]} 8... Bb7 {[%clk 0:02:52.5]} 9. e5 {[%clk 0:02:57.2]} 9... Nd7 {[%clk
0:02:52]} 10. Nf1 {[%clk 0:02:57.4]} 10... h6 {[%clk 0:02:50.2]} 11. h4 {[%clk
0:02:48.9]} 11... Qc7 {[%clk 0:02:49.7]} 12. c4 {[%clk 0:02:48.7]} 12... d4
{[%clk 0:02:47.1]} 13. a3 {[%clk 0:02:46.8]} 13... O-O-O {[%clk 0:02:36.6]} 14.
b4 {[%clk 0:02:45.1]} 14... cxb4 {[%clk 0:02:34.8]} 15. axb4 {[%clk 0:02:44.2]}
15... Bxb4 {[%clk 0:02:33.7]} 16. Bd2 {[%clk 0:02:41.2]} 16... Bc5 {[%clk
0:02:27.3]} 17. h5 {[%clk 0:02:26.1]} 17... Kb8 {[%clk 0:02:13.1]} 18. Bf4
{[%clk 0:02:24.5]} 18... Bb4 {[%clk 0:02:09.1]} 19. Re2 {[%clk 0:02:23.4]} 19...
Bc3 {[%clk 0:02:07.4]} 20. Rb1 {[%clk 0:02:14.1]} 20... g5 {[%clk 0:02:06.8]}
21. hxg6 {[%clk 0:02:11.8]} 21... fxg6 {[%clk 0:02:07.2]} 22. Bc1 {[%clk
0:01:56.6]} 22... Bb4 {[%clk 0:01:59.7]} 23. N1d2 {[%clk 0:01:55.5]} 23... Bxd2
{[%clk 0:01:49.1]} 24. Bxd2 {[%clk 0:01:53.2]} 24... Ncxe5 {[%clk 0:01:45.4]}
25. Nxe5 {[%clk 0:01:48.7]} 25... Nxe5 {[%clk 0:01:45.3]} 26. Rxe5 {[%clk
0:01:47.7]} 26... Bxg2 {[%clk 0:01:30.4]} 27. Kxg2 {[%clk 0:01:47.4]} 27... Qc6+
{[%clk 0:01:28.7]} 28. Qf3 {[%clk 0:01:45.9]} 28... Qxf3+ {[%clk 0:01:28.5]} 29.
Kxf3 {[%clk 0:01:46.8]} 29... Rhf8+ {[%clk 0:01:28]} 30. Kg2 {[%clk 0:01:46.2]}
30... Rf6 {[%clk 0:01:26.5]} 31. Bxh6 {[%clk 0:01:44.7]} 31... Rd7 {[%clk
0:01:26.1]} 32. Bg5 {[%clk 0:01:43.2]} 32... Rf5 {[%clk 0:01:24.3]} 33. Rbe1
{[%clk 0:01:41.7]} 33... Rxe5 {[%clk 0:01:22.7]} 34. Rxe5 {[%clk 0:01:40.8]}
34... a5 {[%clk 0:01:22.8]} 35. Rxe6 {[%clk 0:01:39.5]} 35... Kb7 {[%clk
0:01:23]} 36. Rxg6 {[%clk 0:01:37.1]} 36... a4 {[%clk 0:01:23.3]} 37. Bc1 {[%clk
0:01:37]} 37... Re7 {[%clk 0:01:23.5]} 38. Kf1 {[%clk 0:01:35.6]} 38... Ka6
{[%clk 0:01:21.6]} 39. Ba3 {[%clk 0:01:35.4]} 39... Re5 {[%clk 0:01:19.5]} 40.
Rh6 {[%clk 0:01:33.7]} 40... Ka5 {[%clk 0:01:19.6]} 41. Rd6 {[%clk 0:01:23.5]}
41... b5 {[%clk 0:01:19]} 42. cxb5 {[%clk 0:00:59.2]} 42... Rxb5 {[%clk
0:01:18.5]} 43. Rxd4 {[%clk 0:00:58.5]} 43... Rb3 {[%clk 0:01:18.5]} 44. Bd6
{[%clk 0:00:57.5]} 44... Kb5 {[%clk 0:01:13.9]} 45. g4 {[%clk 0:00:55.6]} 45...
a3 {[%clk 0:01:12.2]} 46. Bxa3 {[%clk 0:00:54.9]} 46... Rxa3 {[%clk 0:01:12.6]}
47. g5 {[%clk 0:00:55.1]} 47... Kc5 {[%clk 0:01:13.1]} 48. Rg4 {[%clk
0:00:52.5]} 48... Rxd3 {[%clk 0:01:12.8]} 49. g6 {[%clk 0:00:52.6]} 49... Rd8
{[%clk 0:01:12.5]} 50. g7 {[%clk 0:00:52.8]} 50... Rg8 {[%clk 0:01:12.4]} 51.
Kg2 {[%clk 0:00:53.4]} 51... Kd5 {[%clk 0:01:11.2]} 52. Kh3 {[%clk 0:00:53.9]}
52... Ke5 {[%clk 0:01:10.5]} 53. Kh4 {[%clk 0:00:53.3]} 53... Kf6 {[%clk
0:01:10.3]} 54. Kh5 {[%clk 0:00:52.7]} 54... Rxg7 {[%clk 0:01:05.2]} 55. Rxg7
{[%clk 0:00:52.5]} 55... Kxg7 {[%clk 0:01:04.4]} 56. Kg5 {[%clk 0:00:53]} 56...
Kf7 {[%clk 0:01:04.6]} 57. Kf5 {[%clk 0:00:53.2]} 57... Ke7 {[%clk 0:01:03.9]}
58. Kg6 {[%clk 0:00:51.6]} 58... Kf8 {[%clk 0:01:04]} 59. Kf6 {[%clk 0:00:50.9]}
59... Ke8 {[%clk 0:01:04.3]} 60. f4 {[%clk 0:00:51.3]} 60... Kf8 {[%clk
0:01:04.3]} 61. f5 {[%clk 0:00:51.3]} 61... Kg8 {[%clk 0:01:04.8]} 62. Ke7
{[%clk 0:00:51.2]} 62... Kg7 {[%clk 0:01:05.2]} 63. f6+ {[%clk 0:00:51.4]} 1-0

[Event "*** SCC Grand Prix: Titled Tuesday Blitz"]
[Site "Chess.com"]
[Date "2020.06.02"]
[Round "10"]
[White "VladimirBugayev"]
[Black "CroissantNeuf"]
[Result "0-1"]
[WhiteElo "2183"]
[BlackElo "2388"]
[TimeControl "180+1"]
[EndTime "11:57:50 PDT"]
[Termination "CroissantNeuf won by resignation"]

1. e4 {[%clk 0:03:00.9]} 1... c6 {[%clk 0:02:55.7]} 2. d4 {[%clk 0:02:59.6]}
2... d5 {[%clk 0:02:54.8]} 3. f3 {[%clk 0:03:00.1]} 3... e6 {[%clk 0:02:53.9]}
4. Nc3 {[%clk 0:02:58.9]} 4... Bb4 {[%clk 0:02:53.4]} 5. Nh3 {[%clk 0:02:59.3]}
5... Ne7 {[%clk 0:02:43.9]} 6. Be3 {[%clk 0:02:54]} 6... O-O {[%clk 0:02:40.9]}
7. a3 {[%clk 0:02:46.7]} 7... Ba5 {[%clk 0:02:36]} 8. b4 {[%clk 0:02:39.9]} 8...
Bb6 {[%clk 0:02:30.3]} 9. Nf2 {[%clk 0:02:33.8]} 9... e5 {[%clk 0:02:28.5]} 10.
exd5 {[%clk 0:02:12.5]} 10... Nf5 {[%clk 0:02:16.2]} 11. Bd2 {[%clk 0:01:58]}
11... exd4 {[%clk 0:02:14.3]} 12. Na4 {[%clk 0:01:51.2]} 12... cxd5 {[%clk
0:02:12.6]} 13. Nxb6 {[%clk 0:01:44.8]} 13... Qxb6 {[%clk 0:02:07.1]} 14. Be2
{[%clk 0:01:32.4]} 14... Nc6 {[%clk 0:01:50.2]} 15. O-O {[%clk 0:01:31.4]} 15...
Re8 {[%clk 0:01:47.4]} 16. Nd3 {[%clk 0:01:20.5]} 16... Ne3 {[%clk 0:01:42.4]}
17. Bxe3 {[%clk 0:01:20.2]} 17... dxe3 {[%clk 0:01:42.2]} 18. f4 {[%clk
0:01:08.3]} 18... Bg4 {[%clk 0:01:28.9]} 19. Kh1 {[%clk 0:01:00.6]} 19... Bxe2
{[%clk 0:01:27.3]} 20. Qxe2 {[%clk 0:01:00.5]} 20... Nd4 {[%clk 0:01:27.7]} 21.
Qg4 {[%clk 0:00:54.8]} 21... e2 {[%clk 0:01:18]} 22. Rfc1 {[%clk 0:00:39.9]}
22... Rac8 {[%clk 0:01:04.7]} 23. f5 {[%clk 0:00:35.3]} 23... Re4 {[%clk
0:00:55.9]} 24. Qh3 {[%clk 0:00:26.5]} 24... Nxc2 {[%clk 0:00:49.5]} 25. f6
{[%clk 0:00:25.8]} 25... Qe6 {[%clk 0:00:45.1]} 26. Qg3 {[%clk 0:00:18.5]} 26...
Qxf6 {[%clk 0:00:30.2]} 27. Nc5 {[%clk 0:00:17.5]} 27... Nxa1 {[%clk 0:00:24.2]}
28. h3 {[%clk 0:00:09.2]} 28... Qf1+ {[%clk 0:00:20.9]} 29. Rxf1 {[%clk
0:00:08.6]} 29... exf1=Q+ {[%clk 0:00:20.9]} 30. Kh2 {[%clk 0:00:09.1]} 30...
Qf4 {[%clk 0:00:20.9]} 0-1